lending/lending_fUSD_20240401
["ID","MTS","AMOUNT","RATE_DAILY","PERIOD"]
[321200593,1711981841705,-5977.6257232,0.00056916,2]
[321200594,1711981841714,-390.4851482,0.00056916,2]
[321200595,1711981841723,-151.0,0.00056919,2]
[321200596,1711981841732,-1411.25333323,0.00056919,4]
[321200597,1711981841742,-20863.07938988,0.00056919,2]
[321200598,1711981841751,-155.13619145,0.00056919,4]
[321200599,1711981841760,-505.91992937,0.00056919,120]
[321200600,1711981841769,-8139.28470174,0.00056919,120]
[321200601,1711981841779,-500.0,0.00056919,120]
[321200602,1711981841787,-500.0,0.00056919,120]
[321200603,1711981841797,-150.0,0.00056919,120]
[321200604,1711981841806,-396249.00233004,0.0005692,30]
[321200605,1711981841816,-19171.68920407,0.0005692,2]
[321200606,1711981841825,-1031.86663697,0.0005692,4]
[321200607,1711981841834,-29903.2035438,0.00056921,4]
[321200608,1711981841844,-156.05522234,0.00056921,4]
[321200609,1711981841854,-2632.61490269,0.00056921,4]
[321200610,1711981841863,-237.08146081,0.00056922,4]
[321200611,1711981841872,-249.9918,0.00056922,4]
[321200612,1711981841882,-198.1561811,0.00056922,4]
[321200613,1711981841891,-155.95012687,0.00056922,4]
[321200614,1711981841901,-557.37096818,0.00056922,4]
[321200615,1711981841911,-182.53780618,0.00056922,4]
[321200616,1711981841920,-672.71847645,0.00056923,4]
[321200617,1711981841929,-295.17259541,0.00056923,2]
[321200618,1711981841938,-174.40472646,0.00056923,4]
[321200619,1711981841948,-1937.49314359,0.00056923,4]
[321200620,1711981841957,-155.37739819,0.00056923,4]
[321200621,1711981841967,-305.98744394,0.00056923,120]
[321200622,1711981841979,-1957.43129055,0.00056923,120]
[321200623,1711981841991,-500.0,0.00056923,120]
[321200624,1711981842001,-370.02,0.00056923,120]
[321200625,1711981842010,-283.97774869,0.00056926,4]
[321200626,1711981842025,-154.73,0.00056927,2]
[321200627,1711981842035,-336.10722834,0.00056927,120]
[321200628,1711981842047,-161994.84657032,0.00056928,2]
[321200629,1711981842060,-765.5494921,0.00056933,2]
[321200630,1711981842071,-1000.0,0.00056933,2]
[321200631,1711981842083,-250.88996858,0.00056936,2]
[321200632,1711981842096,-161994.84657032,0.00056936,2]
[321200633,1711981842108,-375.10890213,0.00056936,2]
[321200634,1711981842119,-752.66990572,0.00056941,2]
[321200635,1711981842129,-161994.84657032,0.00056943,2]
[321200636,1711981842139,-752.66990572,0.00056945,2]
[321200637,1711981842149,-150.5,0.00056948,15]
[321200638,1711981842159,-375.10890213,0.00056955,2]
[321200639,1711981842170,-182.49,0.00056958,15]
[321200640,1711981842181,-150.5,0.00056958,15]
[321200641,1711981842192,-150.5,0.00056958,15]
[321200642,1711981842203,-720.21333362,0.00056958,2]
[321200643,1711981842214,-375.10890213,0.00056962,2]
[321200644,1711981842224,-720.21333362,0.00056962,2]
[321200645,1711981842235,-150.0,0.00056964,120]
[321200646,1711981842247,-161994.84657032,0.00056965,2]
[321200647,1711981842260,-720.21333362,0.00056966,2]
[321200648,1711981842275,-3637.04224075,0.00056968,120]
[321200649,1711981842287,-161994.84657032,0.00056968,2]
[321200650,1711981842298,-500.0,0.00056973,120]
[321200651,1711981842309,-500.0,0.00056973,120]
[321200652,1711981842320,-500.0,0.00056973,120]
[321200653,1711981842331,-500.0,0.00056973,120]
[321200654,1711981842342,-500.0,0.00056973,120]
[321200655,1711981842352,-887.16,0.00056973,120]
[321200656,1711981842362,-500.0,0.00056973,120]
[321200657,1711981842372,-783.39,0.00056973,120]
[321200658,1711981842382,-500.0,0.00056973,120]
[321200659,1711981842392,-500.0,0.00056973,120]
[321200660,1711981842403,-500.0,0.00056973,120]
[321200661,1711981842414,-500.0,0.00056973,120]
[321200662,1711981842424,-500.0,0.00056973,120]
[321200663,1711981842435,-500.0,0.00056973,120]
[321200664,1711981842445,-544.76,0.00056973,120]
[321200665,1711981842456,-500.0,0.00056973,120]
[321200666,1711981842467,-500.0,0.00056973,120]
[321200667,1711981842478,-797.11,0.00056973,120]
[321200668,1711981842489,-1177.5,0.00056973,120]
[321200669,1711981842501,-1668.96,0.00056973,120]
[321200670,1711981842512,-1069.44,0.00056973,120]
[321200672,1711981842528,-500.0,0.00056973,120]
[321200673,1711981842539,-500.0,0.00056973,120]
[321200674,1711981842551,-809.66,0.00056973,120]
[321200675,1711981842564,-238.16,0.00056973,120]
[321200676,1711981842576,-500.0,0.00056973,120]
[321200680,1711981842587,-500.0,0.00056973,120]
[321200682,1711981842599,-500.0,0.00056973,120]
[321200686,1711981842611,-500.0,0.00056973,120]
[321200689,1711981842623,-500.0,0.00056973,120]
[321200692,1711981842635,-1891.43,0.00056973,120]
[321200696,1711981842649,-500.0,0.00056973,120]
[321200699,1711981842661,-500.0,0.00056973,120]
[321200701,1711981842673,-500.0,0.00056973,120]
[321200702,1711981842685,-500.0,0.00056973,120]
[321200703,1711981842698,-569.28,0.00056973,120]
[321200704,1711981842711,-500.0,0.00056973,120]
[321200705,1711981842722,-265.88,0.00056973,120]
[321200706,1711981842734,-500.0,0.00056973,120]
[321200707,1711981842746,-1242.84,0.00056973,120]
[321200708,1711981842758,-500.0,0.00056973,120]
[321200709,1711981842771,-500.0,0.00056973,120]
[321200710,1711981842787,-500.0,0.00056973,120]
[321200711,1711981842798,-500.0,0.00056973,120]
[321200712,1711981842811,-500.0,0.00056973,21]
[321200713,1711981842822,-901.11,0.00056973,120]
[321200714,1711981842833,-500.0,0.00056973,120]
[321200715,1711981842844,-500.0,0.00056973,120]
[321200716,1711981842856,-500.0,0.00056973,120]
[321200717,1711981842868,-2230.78,0.00056973,120]
[321200718,1711981842880,-500.0,0.00056973,120]
[321200719,1711981842890,-500.0,0.00056973,120]
[321200720,1711981842901,-811.7,0.00056973,120]
[321200721,1711981842911,-500.0,0.00056973,120]
[321200722,1711981842921,-500.0,0.00056973,120]
[321200723,1711981842932,-500.0,0.00056973,120]
[321200724,1711981842944,-500.0,0.00056973,120]
[321200725,1711981842955,-500.0,0.00056973,120]
[321200726,1711981842966,-579.67,0.00056973,120]
[321200727,1711981842978,-500.0,0.00056973,120]
[321200728,1711981842988,-500.0,0.00056973,120]
[321200729,1711981843004,-500.0,0.00056973,120]
[321200730,1711981843017,-500.0,0.00056973,120]
[321200731,1711981843034,-500.0,0.00056973,120]
[321200732,1711981843046,-500.0,0.00056973,120]
[321200733,1711981843058,-500.0,0.00056973,120]
[321200734,1711981843071,-500.0,0.00056973,120]
[321200735,1711981843087,-500.0,0.00056973,120]
[321200736,1711981843100,-500.0,0.00056973,120]
[321200737,1711981843111,-500.0,0.00056973,120]
[321200738,1711981843122,-500.0,0.00056973,120]
[321200739,1711981843132,-500.0,0.00056973,120]
[321200740,1711981843144,-500.0,0.00056973,120]
[321200741,1711981843155,-500.0,0.00056973,120]
[321200742,1711981843166,-500.0,0.00056973,120]
[321200743,1711981843177,-500.0,0.00056973,120]
[321200744,1711981843189,-157.4,0.00056973,120]
[321200745,1711981843200,-752.66990572,0.00056973,2]
[321200746,1711981843213,-99801.69200086,0.00056977,2]
[321200747,1711981843225,-99801.69200086,0.00056978,2]
[321200748,1711981843238,-752.66990572,0.00056981,2]
[321200749,1711981843249,-150.0,0.00056984,60]
[321200750,1711981843259,-375.10890213,0.00056984,2]
[321200751,1711981843274,-250.88996858,0.00056984,2]
[321200752,1711981843285,-720.21333362,0.00056985,2]
[321200753,1711981843296,-99801.69200086,0.00056985,2]
[321200754,1711981843306,-375.10890213,0.00056989,2]
[321200755,1711981843317,-752.66990572,0.0005699,2]
[321200756,1711981843329,-99801.69200086,0.00056991,2]
[321200757,1711981843340,-752.66990572,0.00056994,2]
[321200758,1711981843350,-720.21333362,0.00056995,2]
[321200759,1711981843361,-250.88996858,0.00056996,2]
[321200760,1711981843372,-11145.0,0.00056997,4]
[321200761,1711981843383,-500.0,0.00057,14]
[321200762,1711981843393,-19626.0900072,0.00057,120]
[321200763,1711981843403,-1000.0,0.00057,30]
[321200764,1711981843414,-160.52,0.00057,30]
[321200765,1711981843424,-187.99,0.00057,30]
[321200766,1711981843435,-1000.0,0.00057012,120]
[321200767,1711981843445,-362.45382132,0.00057036,2]
[321200768,1711981843456,-18169.35543934,0.00057078,2]
[321200769,1711981843466,-500.0,0.00057149,90]
[321200770,1711981843476,-1000.0,0.00057149,90]
[321200771,1711981843490,-500.0,0.00057149,90]
[321200772,1711981843502,-500.0,0.00057185,120]
[321200773,1711981843513,-500.0,0.00057185,120]
[321200774,1711981843525,-500.0,0.00057186,120]
[321200775,1711981843536,-297.93137574,0.00057186,120]
[321200776,1711981843546,-1000.0,0.00057186,30]
[321200777,1711981843556,-500.0,0.00057186,120]
[321200778,1711981843566,-591.84861162,0.00057186,120]
[321200779,1711981843577,-500.0,0.00057186,120]
[321200780,1711981843587,-500.0,0.00057186,120]
[321200781,1711981843597,-248.59,0.00057186,120]
[321200782,1711981843608,-500.0,0.00057186,120]
[321200783,1711981843618,-500.0,0.00057186,120]
[321200784,1711981843628,-500.0,0.00057186,120]
[321200785,1711981843638,-500.0,0.00057186,120]
[321200786,1711981843649,-500.0,0.00057186,120]
[321200787,1711981843660,-184.73940592,0.00057186,120]
[321200788,1711981843672,-500.0,0.00057186,120]
[321200789,1711981843683,-199.53753936,0.00057186,120]
[321200790,1711981843694,-500.0,0.00057186,120]
[321200791,1711981843705,-429.666782,0.00057238,30]
[321200792,1711981843716,-500.0,0.00057247,120]
[321200793,1711981843726,-500.0,0.00057247,120]
[321200794,1711981843737,-500.0,0.00057247,120]
[321200795,1711981843748,-500.0,0.00057247,120]
[321200796,1711981843758,-500.0,0.00057247,120]
[321200797,1711981843772,-887.16,0.00057247,120]
[321200798,1711981843783,-500.0,0.00057247,120]
[321200800,1711981843793,-783.39,0.00057247,120]
[321200801,1711981843804,-326.1,0.00057247,120]
[321200802,1711981843814,-500.0,0.00057247,120]
[321200803,1711981843824,-196.69,0.00057247,120]
[321200804,1711981843835,-379.26583508,0.00057247,120]
[321200805,1711981843846,-500.0,0.00057247,120]
[321200806,1711981843856,-239.87,0.00057247,120]
[321200807,1711981843867,-500.0,0.00057247,120]
[321200808,1711981843877,-582.04,0.00057247,120]
[321200809,1711981843887,-797.11,0.00057247,120]
[321200810,1711981843898,-1177.5,0.00057247,120]
[321200811,1711981843908,-1668.96,0.00057247,120]
[321200812,1711981843918,-1069.44,0.00057247,120]
[321200813,1711981843929,-500.0,0.00057247,120]
[321200814,1711981843940,-809.66,0.00057247,120]
[321200815,1711981843951,-500.0,0.00057247,120]
[321200816,1711981843961,-500.0,0.00057247,120]
[321200817,1711981843972,-500.0,0.00057247,120]
[321200818,1711981843984,-1891.43,0.00057247,120]
[321200819,1711981843995,-500.0,0.00057247,120]
[321200820,1711981844006,-500.0,0.00057247,120]
[321200821,1711981844017,-500.0,0.00057247,120]
[321200822,1711981844029,-325.26,0.00057247,120]
[321200823,1711981844040,-496.17,0.00057247,120]
[321200824,1711981844051,-500.0,0.00057247,120]
[321200825,1711981844061,-1242.84,0.00057247,120]
[321200826,1711981844071,-500.0,0.00057247,120]
[321200827,1711981844081,-500.0,0.00057247,120]
[321200828,1711981844092,-500.0,0.00057247,120]
[321200829,1711981844103,-500.0,0.00057247,120]
[321200830,1711981844113,-500.0,0.00057247,21]
[321200831,1711981844294,-901.11,0.00057247,120]
[321200832,1711981844304,-500.0,0.00057247,120]
[321200833,1711981844314,-500.0,0.00057247,120]
[321200834,1711981844324,-524.42,0.00057247,120]
[321200835,1711981844333,-2230.78,0.00057247,120]
[321200836,1711981844343,-500.0,0.00057247,120]
[321200837,1711981844352,-811.7,0.00057247,120]
[321200838,1711981844361,-500.0,0.00057247,120]
[321200839,1711981844370,-528.59,0.00057247,120]
[321200840,1711981844380,-500.0,0.00057247,120]
[321200841,1711981844389,-500.0,0.00057247,120]
[321200842,1711981844398,-500.0,0.00057247,120]
[321200843,1711981844407,-579.67,0.00057247,120]
[321200844,1711981844416,-500.0,0.00057247,120]
[321200845,1711981844426,-500.0,0.00057247,120]
[321200846,1711981844435,-500.0,0.00057247,120]
[321200847,1711981844444,-500.0,0.00057247,120]
[321200848,1711981844454,-500.0,0.00057247,120]
[321200849,1711981844463,-500.0,0.00057247,120]
[321200850,1711981844473,-500.0,0.00057247,120]
[321200851,1711981844482,-500.0,0.00057247,120]
[321200852,1711981844492,-500.0,0.00057247,120]
[321200853,1711981844501,-500.0,0.00057247,120]
[321200854,1711981844510,-500.0,0.00057247,120]
[321200855,1711981844522,-500.0,0.00057247,120]
[321200856,1711981844531,-500.0,0.00057247,120]
[321200857,1711981844543,-500.0,0.00057247,120]
[321200858,1711981844552,-500.0,0.00057247,120]
[321200859,1711981844561,-563.39,0.00057247,120]
[321200860,1711981844570,-3275.02607036,0.00057256,2]
[321200861,1711981844579,-1136.549,0.00057283,120]
[321200862,1711981844589,-963.0,0.00057283,120]
[321200863,1711981844598,-1186.351,0.00057283,120]
[321200864,1711981844607,-2070.461,0.00057283,120]
[321200865,1711981844617,-1000.0,0.00057329,120]
[321200866,1711981844626,-1847.58063932,0.00057331,35]
[321200867,1711981844635,-362.45382132,0.00057371,2]
[321200868,1711981844644,-500.0,0.000574,120]
[321200869,1711981844653,-500.0,0.00057423,90]
[321200870,1711981844662,-1000.0,0.00057423,90]
[321200871,1711981844671,-3776.55,0.00057434,6]
[321200872,1711981844681,-500.0,0.00057459,120]
[321200873,1711981844690,-500.0,0.00057459,120]
[321200874,1711981844699,-500.0,0.0005746,120]
[321200875,1711981844708,-1038.3064889,0.0005746,30]
[321200876,1711981844718,-500.0,0.0005746,120]
[321200877,1711981844728,-258.36730228,0.0005746,120]
[321200878,1711981844737,-488.68,0.0005746,120]
[321200879,1711981844747,-500.0,0.0005746,120]
[321200880,1711981844756,-500.0,0.0005746,120]
[321200881,1711981844766,-179.99,0.0005746,120]
[321200882,1711981844777,-551.49423408,0.0005746,120]
[321200883,1711981844787,-500.0,0.0005746,120]
[321200884,1711981844796,-153.75967967,0.00057519,120]
[321200885,1711981844805,-500.0,0.00057521,120]
[321200886,1711981844814,-500.0,0.00057521,120]
[321200887,1711981844824,-500.0,0.00057521,120]
[321200888,1711981844834,-500.0,0.00057521,120]
[321200889,1711981844843,-227.29959243,0.00057521,120]
[321200890,1711981844852,-887.16,0.00057521,120]
[321200891,1711981844861,-500.0,0.00057521,120]
[321200892,1711981844871,-783.39,0.00057521,120]
[321200893,1711981844880,-500.0,0.00057521,120]
[321200894,1711981844890,-589.33,0.00057521,120]
[321200895,1711981844899,-221.8,0.00057521,120]
[321200896,1711981844909,-797.11,0.00057521,120]
[321200897,1711981844918,-1177.5,0.00057521,120]
[321200898,1711981844927,-1668.96,0.00057521,120]
[321200899,1711981844937,-1069.44,0.00057521,120]
[321200900,1711981844946,-500.0,0.00057521,120]
[321200901,1711981844955,-809.66,0.00057521,120]
[321200902,1711981844964,-500.0,0.00057521,120]
[321200903,1711981844974,-500.0,0.00057521,120]
[321200904,1711981844983,-1891.43,0.00057521,120]
[321200905,1711981844992,-500.0,0.00057521,120]
[321200906,1711981845002,-282.3,0.00057521,120]
[321200907,1711981845012,-500.0,0.00057521,120]
[321200908,1711981845025,-1242.84,0.00057521,120]
[321200909,1711981845034,-500.0,0.00057521,120]
[321200910,1711981845043,-500.0,0.00057521,120]
[321200911,1711981845053,-500.0,0.00057521,120]
[321200912,1711981845062,-500.0,0.00057521,21]
[321200913,1711981845073,-901.11,0.00057521,120]
[321200914,1711981845083,-500.0,0.00057521,120]
[321200915,1711981845093,-500.0,0.00057521,120]
[321200916,1711981845102,-2230.78,0.00057521,120]
[321200917,1711981845112,-500.0,0.00057521,120]
[321200918,1711981845121,-811.7,0.00057521,120]
[321200919,1711981845130,-500.0,0.00057521,120]
[321200920,1711981845139,-600.63,0.00057521,120]
[321200921,1711981845150,-500.0,0.00057521,120]
[321200922,1711981845159,-500.0,0.00057521,120]
[321200923,1711981845168,-579.67,0.00057521,120]
[321200924,1711981845179,-500.0,0.00057521,120]
[321200925,1711981845188,-500.0,0.00057521,120]
[321200926,1711981845198,-242.97,0.00057521,120]
[321200927,1711981845207,-500.0,0.00057521,120]
[321200928,1711981845217,-500.0,0.00057521,120]
[321200929,1711981845230,-500.0,0.00057521,120]
[321200930,1711981845239,-500.0,0.00057521,120]
[321200931,1711981845248,-500.0,0.00057521,120]
[321200932,1711981845258,-500.0,0.00057521,120]
[321200933,1711981845268,-200.0,0.00057534,120]
[321200934,1711981845279,-1426.0,0.000576,12]
[321200935,1711981845288,-18169.35543934,0.00057618,2]
[321200936,1711981845298,-3275.02607036,0.00057633,2]
[321200937,1711981845309,-1000.0,0.00057646,120]
[321200938,1711981845320,-500.0,0.00057697,90]
[321200939,1711981845329,-500.0,0.00057697,90]
[321200940,1711981845339,-362.45382132,0.00057707,2]
[321200941,1711981845348,-500.0,0.00057734,120]
[321200942,1711981845357,-500.0,0.00057734,120]
[321200943,1711981845366,-528.89,0.00057734,120]
[321200944,1711981845375,-500.0,0.00057734,120]
[321200945,1711981845385,-500.0,0.00057795,120]
[321200946,1711981845394,-500.0,0.00057795,120]
[321200947,1711981845403,-500.0,0.00057795,120]
[321200948,1711981845412,-500.0,0.00057795,120]
[321200950,1711981845421,-887.16,0.00057795,120]
[321200952,1711981845430,-500.0,0.00057795,120]
[321200953,1711981845439,-783.39,0.00057795,120]
[321200956,1711981845449,-500.0,0.00057795,120]
[321200958,1711981845459,-797.11,0.00057795,120]
[321200960,1711981845468,-1177.5,0.00057795,120]
[321200962,1711981845477,-1668.96,0.00057795,120]
[321200965,1711981845486,-1069.44,0.00057795,120]
[321200966,1711981845495,-809.66,0.00057795,120]
[321200967,1711981845504,-500.0,0.00057795,120]
[321200968,1711981845514,-500.0,0.00057795,120]
[321200969,1711981845525,-1891.43,0.00057795,120]
[321200970,1711981845535,-473.85,0.00057795,120]
[321200971,1711981845544,-500.0,0.00057795,120]
[321200972,1711981845553,-1242.84,0.00057795,120]
[321200973,1711981845562,-500.0,0.00057795,120]
[321200974,1711981845572,-188.97,0.00057795,120]
[321200975,1711981845583,-500.0,0.00057795,21]
[321200976,1711981845592,-901.11,0.00057795,120]
[321200977,1711981845601,-500.0,0.00057795,120]
[321200978,1711981845611,-500.0,0.00057795,120]
[321200979,1711981845620,-2230.78,0.00057795,120]
[321200980,1711981845629,-470.82435004,0.00057795,120]
[321200981,1711981845638,-811.7,0.00057795,120]
[321200982,1711981845648,-292.84,0.00057795,120]
[321200983,1711981845657,-315.82,0.00057795,120]
[321200984,1711981845666,-352.36,0.00057795,120]
[321200985,1711981845675,-579.67,0.00057795,120]
[321200986,1711981845685,-160.27,0.00057795,120]
[321200987,1711981845695,-385.21,0.00057795,120]
[321200988,1711981845704,-264.67,0.00057795,120]
[321200989,1711981845713,-500.0,0.00057795,120]
[321200990,1711981845722,-500.0,0.00057795,120]
[321200991,1711981845731,-500.0,0.00057795,120]
[321200992,1711981845741,-500.0,0.00057795,120]
[321200993,1711981845750,-500.0,0.00057795,120]
[321200994,1711981845759,-1000.0,0.000578,120]
[321200995,1711981845768,-3661.02582555,0.000578,120]
[321200996,1711981845781,-1000.0,0.0005788,120]
[321200997,1711981845790,-15000.0,0.0005789,15]
[321200998,1711981845799,-158.0,0.000579,2]
[321200999,1711981845808,-200.0,0.000579,21]
[321201000,1711981845817,-1847.58063932,0.00057938,36]
[321201001,1711981845827,-1170.474877,0.0005794,29]
[321201002,1711981845837,-150.0,0.00057942,60]
[321201003,1711981845846,-429.666782,0.00057954,30]
[321201004,1711981845856,-150.0,0.00057958,120]
[321201005,1711981845866,-112766.8993666,0.00057959,2]
[321201006,1711981845876,-11871.4544856,0.00057959,2]
[321201007,1711981845886,-1011.8570334,0.00057959,2]
[321201008,1711981845896,-42504.0806282,0.00057959,2]
[321201009,1711981845905,-4988.2932726,0.00057959,2]
[321201010,1711981845915,-390.4851482,0.00057959,2]
[321201011,1711981845924,-1000.0,0.0005796,29]
[321201012,1711981845934,-1000.0,0.00057962,120]
[321201013,1711981845943,-1000.0,0.00057971,90]
[321201014,1711981845953,-1000.0,0.0005798,29]
[321201015,1711981845962,-150.0,0.00057984,60]
[321201016,1711981845972,-1772.475,0.00057998,4]
[321201017,1711981845981,-155.94829632,0.00057998,4]
[321201018,1711981845991,-414.16544687,0.00057999,4]
[321201019,1711981846003,-1397.78923504,0.00057999,120]
[321201020,1711981846014,-582451.21170772,0.00057999,30]
[321201021,1711981846027,-286769.57157522,0.00058,30]
[321201022,1711981846037,-500.000002,0.00058,120]
[321201023,1711981846047,-502.26801625,0.00058,30]
[321201024,1711981846056,-500.0,0.00058,120]
[321201025,1711981846065,-1000.0,0.00058,30]
[321201026,1711981846075,-1899.082097,0.00058,29]
[321201027,1711981846086,-1000.0,0.00058,29]
[321201028,1711981846095,-500.0,0.00058008,120]
[321201029,1711981846104,-3275.02607036,0.00058011,2]
[321201030,1711981846113,-362.45382132,0.00058043,2]
[321201031,1711981846123,-500.0,0.00058069,120]
[321201032,1711981846132,-500.0,0.00058069,120]
[321201033,1711981846142,-500.0,0.00058069,120]
[321201034,1711981846154,-500.0,0.00058069,120]
[321201035,1711981846163,-887.16,0.00058069,120]
[321201036,1711981846173,-500.0,0.00058069,120]
[321201037,1711981846182,-783.39,0.00058069,120]
[321201038,1711981846192,-500.0,0.00058069,120]
[321201039,1711981846202,-797.11,0.00058069,120]
[321201040,1711981846211,-1177.5,0.00058069,120]
[321201041,1711981846221,-1668.96,0.00058069,120]
[321201042,1711981846230,-1069.44,0.00058069,120]
[321201043,1711981846240,-809.66,0.00058069,120]
[321201044,1711981846249,-304.86,0.00058069,120]
[321201045,1711981846258,-500.0,0.00058069,120]
[321201046,1711981846268,-1891.43,0.00058069,120]
[321201047,1711981846281,-500.0,0.00058069,120]
[321201048,1711981846291,-1242.84,0.00058069,120]
[321201049,1711981846300,-500.0,0.00058069,120]
[321201050,1711981846310,-500.0,0.00058069,21]
[321201051,1711981846319,-901.11,0.00058069,120]
[321201052,1711981846329,-500.0,0.00058069,120]
[321201053,1711981846338,-500.0,0.00058069,120]
[321201054,1711981846348,-2230.78,0.00058069,120]
[321201055,1711981846357,-811.7,0.00058069,120]
[321201056,1711981846366,-579.67,0.00058069,120]
[321201057,1711981846378,-500.0,0.00058069,120]
[321201058,1711981846387,-500.0,0.00058069,120]
[321201059,1711981846399,-500.0,0.00058069,120]
[321201060,1711981846409,-500.0,0.00058069,120]
[321201061,1711981846418,-500.0,0.00058069,120]
[321201062,1711981846427,-150.0,0.00058158,120]
[321201063,1711981846437,-18169.35543934,0.00058159,2]
[321201064,1711981846446,-100000.00000001,0.00058184,15]
[321201065,1711981846456,-500.0,0.00058245,90]
[321201066,1711981846466,-567.4873499,0.00058245,90]
[321201067,1711981846475,-1062.7,0.00058247,30]
[321201068,1711981846485,-429.88,0.00058247,30]
[321201069,1711981846494,-154.81,0.00058247,30]
[321201070,1711981846503,-234.87,0.00058247,30]
[321201071,1711981846513,-366.05,0.00058247,30]
[321201072,1711981846524,-303.94,0.00058247,30]
[321201073,1711981846545,-416.54,0.00058247,30]
[321201074,1711981846555,-348.16,0.00058247,30]
[321201075,1711981846565,-150.0,0.00058247,30]
[321201076,1711981846575,-150.0,0.00058247,30]
[321201077,1711981846584,-348.16,0.00058247,30]
[321201078,1711981846594,-416.54,0.00058247,30]
[321201079,1711981846603,-150.0,0.00058247,30]
[321201080,1711981846613,-150.0,0.00058247,30]
[321201081,1711981846623,-1000.0,0.00058279,120]
[321201082,1711981846632,-500.0,0.00058282,120]
[321201083,1711981846642,-1434.57953363,0.00058292,30]
[321201084,1711981846652,-817.01540224,0.00058292,2]
[321201085,1711981846661,-500.0,0.00058343,120]
[321201086,1711981846671,-500.0,0.00058343,120]
[321201087,1711981846681,-500.0,0.00058343,120]
[321201088,1711981846690,-340.12,0.00058343,120]
[321201089,1711981846700,-887.16,0.00058343,120]
[321201090,1711981846710,-533.81896322,0.00058343,120]
[321201091,1711981846719,-783.39,0.00058343,120]
[321201092,1711981846729,-624.27,0.00058343,120]
[321201093,1711981846739,-797.11,0.00058343,120]
[321201094,1711981846748,-1177.5,0.00058343,120]
[321201095,1711981846757,-1668.96,0.00058343,120]
[321201096,1711981846767,-1069.44,0.00058343,120]
[321201097,1711981846780,-809.66,0.00058343,120]
[321201098,1711981846790,-500.0,0.00058343,120]
[321201099,1711981846799,-1891.43,0.00058343,120]
[321201100,1711981846809,-421.84,0.00058343,120]
[321201101,1711981846818,-1242.84,0.00058343,120]
[321201102,1711981846828,-500.0,0.00058343,120]
[321201103,1711981846837,-500.0,0.00058343,21]
[321201104,1711981846847,-901.11,0.00058343,120]
[321201105,1711981846856,-500.0,0.00058343,120]
[321201106,1711981846865,-500.0,0.00058343,120]
[321201107,1711981846874,-2230.78,0.00058343,120]
[321201108,1711981846884,-811.7,0.00058343,120]
[321201109,1711981846894,-579.67,0.00058343,120]
[321201110,1711981846904,-500.0,0.00058343,120]
[321201111,1711981846914,-500.0,0.00058343,120]
[321201112,1711981846923,-500.0,0.00058343,120]
[321201113,1711981846932,-500.0,0.00058343,120]
[321201114,1711981846942,-500.0,0.00058343,120]
[321201115,1711981846952,-362.45382132,0.00058379,2]
[321201116,1711981846961,-624.75666761,0.00058381,7]
[321201117,1711981846970,-3275.02607036,0.00058389,2]
[321201118,1711981846980,-200.0,0.00058438,120]
[321201119,1711981846990,-9882.60648338,0.0005844,15]
[321201120,1711981847002,-1000.0,0.00058519,90]